fUSD/lending_fUSD_20260614
["ID","MTS","AMOUNT","RATE_DAILY","PERIOD"]
[425056865,1781447508000,-500.0,0.00029315,8]
[425056808,1781447508000,-528.7,0.00029315,8]
[425056851,1781447508000,-500.0,0.00029315,8]
[425056836,1781447508000,-2890.54,0.00029315,8]
[425056864,1781447508000,-605.58,0.00029315,8]
[425056835,1781447508000,-557.28,0.00029315,8]
[425056809,1781447508000,-636.66,0.00029315,8]
[425056817,1781447508000,-1407.31,0.00029315,8]
[425056816,1781447508000,-1023.6,0.00029315,8]
[425056818,1781447508000,-500.0,0.00029315,8]
[425056819,1781447508000,-1278.35,0.00029315,8]
[425056810,1781447508000,-540.32,0.00029315,8]
[425056815,1781447508000,-508.2,0.00029315,8]
[425056840,1781447508000,-500.0,0.00029315,8]
[425056813,1781447508000,-1749.66,0.00029315,8]
[425056811,1781447508000,-1109.22,0.00029315,8]
[425056814,1781447508000,-1000.0,0.00029315,8]
[425056820,1781447508000,-500.0,0.00029315,8]
[425056824,1781447508000,-500.0,0.00029315,8]
[425056812,1781447508000,-4001.43,0.00029315,8]
[425056822,1781447508000,-11664.09,0.00029315,8]
[425056832,1781447508000,-500.0,0.00029315,8]
[425056829,1781447508000,-500.0,0.00029315,8]
[425056843,1781447508000,-1214.13,0.00029315,8]
[425056834,1781447508000,-1296.71,0.00029315,8]
[425056828,1781447508000,-500.0,0.00029315,8]
[425056830,1781447508000,-500.0,0.00029315,8]
[425056833,1781447508000,-589.03,0.00029315,8]
[425056831,1781447508000,-2026.58,0.00029315,8]
[425056826,1781447508000,-677.78,0.00029315,8]
[425056821,1781447508000,-500.0,0.00029315,8]
[425056827,1781447508000,-505.16,0.00029315,8]
[425056823,1781447508000,-563.46,0.00029315,8]
[425056825,1781447508000,-25282.9,0.00029315,8]
[425056903,1781447509000,-5289.14,0.00029315,8]
[425056902,1781447509000,-640.65,0.00029315,8]
[425056904,1781447509000,-1648.13,0.00029315,8]
[425056913,1781447509000,-800.7,0.00029315,8]
[425056896,1781447509000,-500.0,0.00029315,8]
[425056895,1781447509000,-649.93,0.00029315,8]
[425056901,1781447509000,-1599.83,0.00029315,8]
[425056894,1781447509000,-500.0,0.00029315,8]
[425056900,1781447509000,-707.22,0.00029315,8]
[425056893,1781447509000,-1297.07,0.00029315,8]
[425056899,1781447509000,-1326.3,0.00029315,8]
[425056905,1781447509000,-955.12,0.00029315,8]
[425056917,1781447509000,-500.0,0.00029315,8]
[425056906,1781447509000,-861.57,0.00029315,8]
[425056909,1781447509000,-500.0,0.00029315,8]
[425056910,1781447509000,-2104.15,0.00029315,8]
[425056908,1781447509000,-500.0,0.00029315,8]
[425056911,1781447509000,-1609.77,0.00029315,8]
[425056912,1781447509000,-500.0,0.00029315,8]
[425056914,1781447509000,-500.0,0.00029315,8]
[425056916,1781447509000,-500.0,0.00029315,8]
[425056918,1781447509000,-1133.48,0.00029315,8]
[425056915,1781447509000,-921.05,0.00029315,8]
[425056920,1781447509000,-500.0,0.00029315,8]
[425056898,1781447509000,-500.0,0.00029315,8]
[425056907,1781447509000,-577.21,0.00029315,8]
[425056891,1781447509000,-2061.13,0.00029315,8]
[425056890,1781447509000,-500.0,0.00029315,8]
[425056892,1781447509000,-500.0,0.00029315,8]
[425056919,1781447509000,-500.0,0.00029315,8]
[425056866,1781447509000,-1108.18,0.00029315,8]
[425056871,1781447509000,-500.0,0.00029315,8]
[425056877,1781447509000,-500.0,0.00029315,8]
[425056869,1781447509000,-395.25067565,0.00029315,8]
[425056874,1781447509000,-500.0,0.00029315,8]
[425056876,1781447509000,-878.66,0.00029315,8]
[425056867,1781447509000,-500.0,0.00029315,8]
[425056868,1781447509000,-500.0,0.00029315,8]
[425056870,1781447509000,-2020.73,0.00029315,8]
[425056872,1781447509000,-1129.02,0.00029315,2]
[425056873,1781447509000,-1357.49,0.00029315,8]
[425056878,1781447509000,-529.83,0.00029315,8]
[425056875,1781447509000,-500.0,0.00029315,8]
[425056880,1781447509000,-500.0,0.00029315,8]
[425056882,1781447509000,-707.83,0.00029315,8]
[425056879,1781447509000,-500.0,0.00029315,8]
[425056881,1781447509000,-839.66,0.00029315,8]
[425056884,1781447509000,-500.0,0.00029315,8]
[425056883,1781447509000,-900.28,0.00029315,8]
[425056885,1781447509000,-822.75,0.00029315,8]
[425056886,1781447509000,-12728.02,0.00029315,8]
[425056887,1781447509000,-500.0,0.00029315,8]
[425056888,1781447509000,-500.0,0.00029315,8]
[425056889,1781447509000,-500.0,0.00029315,8]
[425056897,1781447509000,-1057.08,0.00029315,8]
[425056922,1781447509000,-500.0,0.00029315,8]
[425056923,1781447509000,-500.0,0.00029315,8]
[425056924,1781447509000,-500.0,0.00029315,8]
[425056954,1781447509000,-202.70228411,0.0002958,30]
[425056953,1781447509000,-158.44448519,0.0002958,30]
[425056955,1781447509000,-667.37624602,0.00029588,8]
[425056958,1781447509000,-18238.12941983,0.00029589,10]
[425056956,1781447509000,-667.37624602,0.00029588,8]
[425056968,1781447509000,-500.0,0.00029589,8]
[425056960,1781447509000,-500.0,0.00029589,8]
[425056961,1781447509000,-569.09,0.00029589,8]
[425056959,1781447509000,-2287.07,0.00029589,8]
[425056962,1781447509000,-1290.4,0.00029589,8]
[425056970,1781447509000,-500.0,0.00029589,8]
[425056967,1781447509000,-510.86,0.00029589,8]
[425056963,1781447509000,-706.5,0.00029589,8]
[425056964,1781447509000,-957.59,0.00029589,8]
[425056966,1781447509000,-500.0,0.00029589,8]
[425056965,1781447509000,-500.0,0.00029589,8]
[425056976,1781447509000,-925.25,0.00029589,8]
[425056977,1781447509000,-1526.43,0.00029589,8]
[425056975,1781447509000,-558.29,0.00029589,8]
[425056973,1781447509000,-512.97,0.00029589,8]
[425056974,1781447509000,-630.1,0.00029589,8]
[425056979,1781447509000,-500.0,0.00029589,8]
[425056972,1781447509000,-500.0,0.00029589,8]
[425056971,1781447509000,-1013.37,0.00029589,8]
[425056978,1781447509000,-500.0,0.00029589,8]
[425056957,1781447509000,-150.0,0.00029589,2]
[425056952,1781447509000,-1791.15813918,0.00029572,2]
[425056969,1781447509000,-500.0,0.00029589,8]
[425056949,1781447509000,-150.0,0.00029534,2]
[425056951,1781447509000,-1791.15813918,0.00029564,2]
[425056926,1781447509000,-500.0,0.00029315,8]
[425056936,1781447509000,-1460.48,0.000294,7]
[425056929,1781447509000,-3000.0,0.00029315,2]
[425056928,1781447509000,-741.37,0.00029315,8]
[425056925,1781447509000,-500.0,0.00029315,8]
[425056927,1781447509000,-837.18,0.00029315,8]
[425056934,1781447509000,-1791.15813918,0.00029316,2]
[425056930,1781447509000,-3000.0,0.00029315,2]
[425056933,1781447509000,-151.85933924,0.00029315,2]
[425056931,1781447509000,-3000.0,0.00029315,2]
[425056932,1781447509000,-339.3873055,0.00029315,2]
[425056935,1781447509000,-1568.53,0.000294,7]
[425056921,1781447509000,-922.21,0.00029315,8]
[425056950,1781447509000,-1791.15813918,0.00029544,2]
[425056937,1781447509000,-700.0,0.0002943,10]
[425056944,1781447509000,-1041.00745738,0.00029533,5]
[425056945,1781447509000,-1055.287066,0.00029533,5]
[425056943,1781447509000,-1110.93714731,0.00029533,5]
[425056946,1781447509000,-1036.20027295,0.00029533,5]
[425056947,1781447509000,-1074.93576341,0.00029533,5]
[425056948,1781447509000,-1378.49035901,0.00029533,5]
[425056941,1781447509000,-1056.75092906,0.00029533,5]
[425056939,1781447509000,-1053.91957716,0.00029533,5]
[425056942,1781447509000,-1087.24361553,0.00029533,5]
[425056940,1781447509000,-1077.67650744,0.00029533,5]
[425056938,1781447509000,-1060.96960326,0.00029533,5]
[425057012,1781447510000,-1285.32,0.00029589,8]
[425057024,1781447510000,-500.0,0.00029589,8]
[425057019,1781447510000,-735.2,0.00029589,8]
[425057015,1781447510000,-926.37,0.00029589,8]
[425057016,1781447510000,-578.78,0.00029589,8]
[425057009,1781447510000,-500.0,0.00029589,8]
[425057017,1781447510000,-500.0,0.00029589,8]
[425057013,1781447510000,-500.0,0.00029589,8]
[425057011,1781447510000,-508.34,0.00029589,8]
[425057014,1781447510000,-514.54,0.00029589,8]
[425057028,1781447510000,-800.55,0.00029589,8]
[425057010,1781447510000,-1224.99,0.00029589,8]
[425057022,1781447510000,-553.9,0.00029589,8]
[425057025,1781447510000,-1121.81,0.00029589,8]
[425057023,1781447510000,-524.27,0.00029589,8]
[425057020,1781447510000,-500.0,0.00029589,8]
[425057029,1781447510000,-682.21,0.00029589,8]
[425057026,1781447510000,-1031.86,0.00029589,8]
[425057021,1781447510000,-500.0,0.00029589,8]
[425057031,1781447510000,-500.0,0.00029589,8]
[425057032,1781447510000,-566.82658389,0.00029589,8]
[425057030,1781447510000,-362.86945468,0.00029589,8]
[425057033,1781447510000,-546.49,0.00029589,8]
[425057034,1781447510000,-500.0,0.00029589,8]
[425057038,1781447510000,-500.0,0.00029589,8]
[425057040,1781447510000,-500.0,0.00029589,8]
[425057027,1781447510000,-648.16,0.00029589,8]
[425057007,1781447510000,-700.76,0.00029589,8]
[425056981,1781447510000,-500.0,0.00029589,8]
[425057008,1781447510000,-500.0,0.00029589,8]
[425057036,1781447510000,-500.0,0.00029589,8]
[425056980,1781447510000,-500.0,0.00029589,8]
[425056983,1781447510000,-1280.28,0.00029589,8]
[425056994,1781447510000,-500.0,0.00029589,8]
[425056993,1781447510000,-500.0,0.00029589,8]
[425056982,1781447510000,-552.72,0.00029589,8]
[425056984,1781447510000,-542.62,0.00029589,8]
[425056987,1781447510000,-500.0,0.00029589,8]
[425056988,1781447510000,-500.0,0.00029589,8]
[425056985,1781447510000,-500.0,0.00029589,8]
[425056986,1781447510000,-500.0,0.00029589,8]
[425056990,1781447510000,-685.22,0.00029589,8]
[425056989,1781447510000,-500.0,0.00029589,8]
[425056992,1781447510000,-736.33,0.00029589,8]
[425056991,1781447510000,-614.99,0.00029589,8]
[425056999,1781447510000,-985.3,0.00029589,8]
[425056995,1781447510000,-500.0,0.00029589,8]
[425056998,1781447510000,-1200.69,0.00029589,8]
[425057006,1781447510000,-500.0,0.00029589,8]
[425056997,1781447510000,-1300.69,0.00029589,8]
[425056996,1781447510000,-801.17,0.00029589,8]
[425057001,1781447510000,-1573.21,0.00029589,8]
[425057004,1781447510000,-1067.78,0.00029589,8]
[425057003,1781447510000,-738.99,0.00029589,8]
[425057005,1781447510000,-500.0,0.00029589,8]
[425057000,1781447510000,-1007.63,0.00029589,8]
[425057002,1781447510000,-500.0,0.00029589,8]
[425057018,1781447510000,-951.06,0.00029589,8]
[425057037,1781447510000,-1400.43,0.00029589,8]
[425057094,1781447510000,-1207.41,0.00029589,8]
[425057039,1781447510000,-211.04,0.00029589,8]
[425057079,1781447510000,-500.0,0.00029589,8]
[425057076,1781447510000,-500.0,0.00029589,8]
[425057074,1781447510000,-500.0,0.00029589,8]
[425057071,1781447510000,-500.0,0.00029589,8]
[425057077,1781447510000,-500.0,0.00029589,8]
[425057073,1781447510000,-1031.94,0.00029589,8]
[425057072,1781447510000,-500.0,0.00029589,8]
[425057075,1781447510000,-500.0,0.00029589,8]
[425057080,1781447510000,-1015.25,0.00029589,8]
[425057081,1781447510000,-664.01,0.00029589,8]
[425057082,1781447510000,-500.0,0.00029589,8]
[425057087,1781447510000,-500.0,0.00029589,8]
[425057090,1781447510000,-500.0,0.00029589,8]
[425057084,1781447510000,-1047.49,0.00029589,8]
[425057091,1781447510000,-1037.86,0.00029589,8]
[425057083,1781447510000,-500.0,0.00029589,8]
[425057086,1781447510000,-500.0,0.00029589,8]
[425057085,1781447510000,-500.0,0.00029589,8]
[425057089,1781447510000,-500.0,0.00029589,8]
[425057088,1781447510000,-500.0,0.00029589,8]
[425057092,1781447510000,-773.85,0.00029589,8]
[425057093,1781447510000,-2107.14,0.00029589,8]
[425057097,1781447510000,-500.0,0.00029589,8]
[425057096,1781447510000,-500.0,0.00029589,8]
[425057099,1781447510000,-1099.99,0.00029589,8]
[425057035,1781447510000,-500.0,0.00029589,8]
[425057095,1781447510000,-766.55,0.00029589,8]
[425057070,1781447510000,-532.02,0.00029589,8]
[425057067,1781447510000,-500.0,0.00029589,8]
[425057098,1781447510000,-508.13,0.00029589,8]
[425057078,1781447510000,-1604.32,0.00029589,8]
[425057069,1781447510000,-1281.05,0.00029589,8]
[425057041,1781447510000,-1274.35,0.00029589,8]
[425057046,1781447510000,-500.0,0.00029589,8]
[425057047,1781447510000,-500.0,0.00029589,8]
[425057044,1781447510000,-688.19,0.00029589,8]
[425057049,1781447510000,-500.0,0.00029589,8]
[425057045,1781447510000,-500.0,0.00029589,8]
[425057042,1781447510000,-500.0,0.00029589,8]
[425057048,1781447510000,-500.0,0.00029589,8]
[425057051,1781447510000,-608.15,0.00029589,8]
[425057052,1781447510000,-1189.57,0.00029589,8]
[425057050,1781447510000,-500.0,0.00029589,8]
[425057053,1781447510000,-500.0,0.00029589,8]
[425057043,1781447510000,-500.0,0.00029589,8]
[425057065,1781447510000,-500.0,0.00029589,8]
[425057059,1781447510000,-500.0,0.00029589,8]
[425057068,1781447510000,-500.0,0.00029589,8]
[425057064,1781447510000,-500.0,0.00029589,8]
[425057061,1781447510000,-1053.08,0.00029589,8]
[425057055,1781447510000,-206.23083315,0.00029589,8]
[425057062,1781447510000,-672.85,0.00029589,8]
[425057060,1781447510000,-500.0,0.00029589,8]
[425057063,1781447510000,-500.0,0.00029589,8]
[425057056,1781447510000,-500.0,0.00029589,8]
[425057057,1781447510000,-500.0,0.00029589,8]
[425057066,1781447510000,-500.0,0.00029589,8]
[425057054,1781447510000,-1222.28,0.00029589,8]
[425057058,1781447510000,-1452.09,0.00029589,8]
[425057138,1781447511000,-500.0,0.00029589,8]
[425057147,1781447511000,-540.2075673,0.00029589,8]
[425057137,1781447511000,-500.0,0.00029589,8]
[425057148,1781447511000,-500.0,0.00029589,8]
[425057133,1781447511000,-815.68,0.00029589,8]
[425057135,1781447511000,-556.37,0.00029589,8]
[425057129,1781447511000,-866.85,0.00029589,8]
[425057124,1781447511000,-500.0,0.00029589,8]
[425057132,1781447511000,-500.0,0.00029589,8]
[425057130,1781447511000,-500.0,0.00029589,8]
[425057131,1781447511000,-500.0,0.00029589,8]
[425057139,1781447511000,-790.09,0.00029589,8]
[425057144,1781447511000,-500.0,0.00029589,8]
[425057140,1781447511000,-534.02,0.00029589,8]
[425057145,1781447511000,-648.3,0.00029589,8]
[425057146,1781447511000,-500.0,0.00029589,8]
[425057142,1781447511000,-520.69,0.00029589,8]
[425057143,1781447511000,-1217.4,0.00029589,8]
[425057149,1781447511000,-500.0,0.00029589,8]
[425057152,1781447511000,-500.0,0.00029589,8]
[425057156,1781447511000,-597.42,0.00029589,8]
[425057153,1781447511000,-500.0,0.00029589,8]
[425057151,1781447511000,-467.07394059,0.00029589,8]
[425057136,1781447511000,-500.0,0.00029589,8]
[425057154,1781447511000,-1022.53,0.00029589,8]
[425057141,1781447511000,-500.0,0.00029589,8]
[425057134,1781447511000,-500.0,0.00029589,8]
[425057112,1781447511000,-500.0,0.00029589,8]
[425057128,1781447511000,-2153.84,0.00029589,8]
[425057150,1781447511000,-622.84005548,0.00029589,8]
[425057102,1781447511000,-500.0,0.00029589,8]
[425057101,1781447511000,-899.88,0.00029589,8]
[425057100,1781447511000,-586.53,0.00029589,8]
[425057114,1781447511000,-554.77,0.00029589,8]
[425057104,1781447511000,-1425.15,0.00029589,8]
[425057103,1781447511000,-671.88,0.00029589,8]
[425057105,1781447511000,-1195.63,0.00029589,8]
[425057106,1781447511000,-1398.15,0.00029589,8]
[425057107,1781447511000,-520.02,0.00029589,8]
[425057109,1781447511000,-500.0,0.00029589,8]
[425057113,1781447511000,-1132.03,0.00029589,8]
[425057127,1781447511000,-500.0,0.00029589,8]
[425057111,1781447511000,-500.0,0.00029589,8]
[425057110,1781447511000,-500.0,0.00029589,8]
[425057117,1781447511000,-500.0,0.00029589,8]
[425057120,1781447511000,-500.0,0.00029589,8]
[425057115,1781447511000,-607.25,0.00029589,8]
[425057122,1781447511000,-853.99,0.00029589,8]
[425057118,1781447511000,-638.31,0.00029589,8]
[425057119,1781447511000,-510.28,0.00029589,8]
[425057121,1781447511000,-500.0,0.00029589,8]
[425057116,1781447511000,-500.0,0.00029589,7]
[425057123,1781447511000,-806.88,0.00029589,8]
[425057125,1781447511000,-500.0,0.00029589,8]
[425057126,1781447511000,-544.6,0.00029589,8]
[425057108,1781447511000,-841.95,0.00029589,8]
[425057159,1781447511000,-573.76,0.00029589,8]
[425057165,1781447511000,-689.06,0.00029589,8]
[425057158,1781447511000,-1193.0,0.00029589,8]
[425057185,1781447511000,-500.0,0.00029589,8]
[425057194,1781447511000,-500.0,0.00029589,8]
[425057187,1781447511000,-500.0,0.00029589,8]
[425057191,1781447511000,-500.0,0.00029589,8]
[425057189,1781447511000,-500.0,0.00029589,8]
[425057188,1781447511000,-566.53,0.00029589,8]
[425057190,1781447511000,-500.0,0.00029589,8]
[425057192,1781447511000,-500.0,0.00029589,8]
[425057193,1781447511000,-500.0,0.00029589,8]
[425057199,1781447511000,-1199.94,0.00029589,8]
[425057198,1781447511000,-529.52,0.00029589,8]
[425057200,1781447511000,-536.09,0.00029589,8]
[425057197,1781447511000,-500.0,0.00029589,8]
[425057202,1781447511000,-1220.66,0.00029589,8]
[425057206,1781447511000,-1285.7,0.00029589,8]
[425057203,1781447511000,-500.0,0.00029589,8]
[425057209,1781447511000,-500.0,0.00029589,8]
[425057207,1781447511000,-500.0,0.00029589,8]
[425057204,1781447511000,-500.0,0.00029589,8]
[425057205,1781447511000,-1992.83,0.00029589,8]
[425057210,1781447511000,-500.0,0.00029589,8]
[425057212,1781447511000,-500.0,0.00029589,8]
[425057211,1781447511000,-500.0,0.00029589,8]
[425057214,1781447511000,-577.76,0.00029589,8]
[425057213,1781447511000,-694.97,0.00029589,8]
[425057157,1781447511000,-500.0,0.00029589,8]
[425057201,1781447511000,-611.86,0.00029589,8]
[425057196,1781447511000,-714.38,0.00029589,8]
[425057208,1781447511000,-694.6,0.00029589,8]
[425057186,1781447511000,-892.45,0.00029589,8]
[425057195,1781447511000,-500.0,0.00029589,8]
[425057160,1781447511000,-500.0,0.00029589,8]
[425057162,1781447511000,-500.0,0.00029589,8]
[425057170,1781447511000,-784.28,0.00029589,8]
[425057172,1781447511000,-872.27,0.00029589,8]
[425057171,1781447511000,-500.0,0.00029589,8]
[425057173,1781447511000,-500.0,0.00029589,8]
[425057163,1781447511000,-1254.7,0.00029589,8]
[425057166,1781447511000,-723.54,0.00029589,8]
[425057161,1781447511000,-500.0,0.00029589,8]
[425057164,1781447511000,-500.0,0.00029589,8]
[425057169,1781447511000,-500.0,0.00029589,8]
[425057167,1781447511000,-1746.88,0.00029589,8]
[425057215,1781447511000,-638.67,0.00029589,8]
[425057168,1781447511000,-500.0,0.00029589,8]
[425057184,1781447511000,-1046.11,0.00029589,8]
[425057182,1781447511000,-533.2,0.00029589,8]
[425057180,1781447511000,-623.88,0.00029589,8]
[425057179,1781447511000,-639.31,0.00029589,8]
[425057178,1781447511000,-500.0,0.00029589,8]
[425057181,1781447511000,-504.6,0.00029589,8]
[425057155,1781447511000,-543.72,0.00029589,8]
[425057177,1781447511000,-500.0,0.00029589,8]
[425057176,1781447511000,-500.0,0.00029589,8]
[425057174,1781447511000,-559.91,0.00029589,8]
[425057175,1781447511000,-500.0,0.00029589,8]
[425057183,1781447511000,-715.69,0.00029589,8]
[425057260,1781447512000,-1329.36,0.00029589,8]
[425057270,1781447512000,-747.07,0.00029589,8]
[425057257,1781447512000,-836.13,0.00029589,8]
[425057258,1781447512000,-500.0,0.00029589,8]
[425057254,1781447512000,-500.0,0.00029589,8]
[425057256,1781447512000,-500.0,0.00029589,8]
[425057246,1781447512000,-500.0,0.00029589,8]
[425057255,1781447512000,-500.0,0.00029589,8]
[425057247,1781447512000,-710.6,0.00029589,8]
[425057251,1781447512000,-1530.48,0.00029589,8]
[425057250,1781447512000,-500.0,0.00029589,8]
[425057253,1781447512000,-244.82656913,0.00029589,8]
[425057252,1781447512000,-500.0,0.00029589,8]
[425057274,1781447512000,-500.0,0.00029589,8]
[425057259,1781447512000,-500.0,0.00029589,8]
[425057262,1781447512000,-500.0,0.00029589,8]
[425057261,1781447512000,-578.24,0.00029589,8]
[425057263,1781447512000,-500.0,0.00029589,8]
[425057264,1781447512000,-500.0,0.00029589,8]
[425057268,1781447512000,-500.0,0.00029589,8]
[425057265,1781447512000,-987.41,0.00029589,8]
[425057267,1781447512000,-500.0,0.00029589,8]
[425057269,1781447512000,-500.0,0.00029589,8]
[425057266,1781447512000,-500.0,0.00029589,8]
[425057272,1781447512000,-500.0,0.00029589,8]
[425057273,1781447512000,-579.71,0.00029589,8]
[425057248,1781447512000,-556.38,0.00029589,8]
[425057271,1781447512000,-1199.11,0.00029589,8]
[425057249,1781447512000,-932.78,0.00029589,8]
[425057218,1781447512000,-1019.53,0.00029589,8]
[425057242,1781447512000,-1214.87,0.00029589,8]
[425057220,1781447512000,-500.0,0.00029589,8]
[425057282,1781447512000,-597.59,0.00029589,8]
[425057216,1781447512000,-681.48,0.00029589,8]
[425057217,1781447512000,-500.0,0.00029589,8]
[425057219,1781447512000,-500.0,0.00029589,8]
[425057221,1781447512000,-186.37855215,0.00029589,8]
[425057223,1781447512000,-770.14,0.00029589,8]
[425057227,1781447512000,-1236.08,0.00029589,8]
[425057226,1781447512000,-648.66,0.00029589,8]
[425057224,1781447512000,-606.2,0.00029589,8]
[425057229,1781447512000,-500.0,0.00029589,8]
[425057225,1781447512000,-500.0,0.00029589,8]
[425057222,1781447512000,-500.0,0.00029589,8]
[425057230,1781447512000,-500.0,0.00029589,8]
[425057228,1781447512000,-500.0,0.00029589,8]
[425057233,1781447512000,-500.0,0.00029589,8]
[425057232,1781447512000,-500.0,0.00029589,8]
[425057235,1781447512000,-752.56,0.00029589,8]
[425057245,1781447512000,-500.0,0.00029589,8]
[425057234,1781447512000,-1794.38,0.00029589,8]
[425057236,1781447512000,-500.0,0.00029589,8]
[425057237,1781447512000,-500.0,0.00029589,8]
[425057238,1781447512000,-500.0,0.00029589,8]
[425057241,1781447512000,-1362.07,0.00029589,8]
[425057240,1781447512000,-500.0,0.00029589,8]
[425057239,1781447512000,-500.0,0.00029589,8]
[425057243,1781447512000,-712.15,0.00029589,8]
[425057244,1781447512000,-658.12,0.00029589,8]
[425057283,1781447512000,-565.44,0.00029589,8]
[425057231,1781447512000,-1086.15,0.00029589,8]
[425057275,1781447512000,-500.0,0.00029589,8]
[425057317,1781447512000,-532.23,0.00029589,8]
[425057320,1781447512000,-564.84,0.00029589,8]
[425057308,1781447512000,-729.66,0.00029589,8]
[425057311,1781447512000,-500.0,0.00029589,8]
[425057310,1781447512000,-500.0,0.00029589,8]
[425057313,1781447512000,-500.0,0.00029589,8]
[425057312,1781447512000,-500.0,0.00029589,8]
[425057316,1781447512000,-500.0,0.00029589,8]
[425057314,1781447512000,-1150.58,0.00029589,8]
[425057315,1781447512000,-500.0,0.00029589,8]
[425057323,1781447512000,-500.0,0.00029589,8]
[425057322,1781447512000,-500.0,0.00029589,8]
[425057321,1781447512000,-648.15,0.00029589,8]
[425057324,1781447512000,-2000.0,0.00029589,2]
[425057326,1781447512000,-500.0,0.00029589,8]
[425057328,1781447512000,-500.0,0.00029589,8]
[425057327,1781447512000,-500.0,0.00029589,8]
[425057325,1781447512000,-835.21,0.00029589,8]
[425057330,1781447512000,-500.0,0.00029589,8]
[425057329,1781447512000,-880.78,0.00029589,8]
[425057331,1781447512000,-616.02,0.00029589,8]
[425057332,1781447512000,-500.0,0.00029589,8]
[425057334,1781447512000,-500.0,0.00029589,8]
[425057335,1781447512000,-500.0,0.00029589,8]
[425057336,1781447512000,-500.0,0.00029589,8]
[425057337,1781447512000,-500.0,0.00029589,8]
[425057281,1781447512000,-856.87,0.00029589,8]
[425057309,1781447512000,-815.38,0.00029589,8]
[425057319,1781447512000,-657.48,0.00029589,8]
[425057333,1781447512000,-3014.18,0.00029589,8]
[425057304,1781447512000,-845.18,0.00029589,8]
[425057318,1781447512000,-500.0,0.00029589,8]
[425057276,1781447512000,-1016.47,0.00029589,8]
[425057279,1781447512000,-519.48,0.00029589,8]
[425057277,1781447512000,-500.0,0.00029589,8]
[425057285,1781447512000,-500.0,0.00029589,8]
[425057278,1781447512000,-1038.13,0.00029589,8]
[425057286,1781447512000,-500.0,0.00029589,8]
[425057284,1781447512000,-500.0,0.00029589,8]
[425057288,1781447512000,-657.3,0.00029589,8]
[425057289,1781447512000,-500.0,0.00029589,8]
[425057287,1781447512000,-1068.73,0.00029589,8]
[425057294,1781447512000,-675.87,0.00029589,8]
[425057292,1781447512000,-500.0,0.00029589,8]
[425057291,1781447512000,-663.09,0.00029589,8]
[425057280,1781447512000,-500.0,0.00029589,8]
[425057293,1781447512000,-944.34,0.00029589,8]
[425057290,1781447512000,-1514.46,0.00029589,8]
[425057307,1781447512000,-500.0,0.00029589,8]
[425057303,1781447512000,-500.0,0.00029589,8]
[425057305,1781447512000,-631.21,0.00029589,8]
[425057301,1781447512000,-702.19,0.00029589,8]
[425057306,1781447512000,-500.0,0.00029589,8]
[425057302,1781447512000,-500.0,0.00029589,8]